bitfinex-derivatives/quotes_SOLF0:USTF0_20241105
["timestamp","ask_amount","ask_price","bid_price","bid_amount"]
[1730817831040,2.1029,166.49,166.41,4.46]
[1730817831242,20.58495782,166.5,166.45,2.1034]
[1730817831437,18.48215782,166.5,166.45,2.1034]
[1730817831841,20.58505782,166.5,166.45,2.1034]
[1730817832349,18.48215782,166.5,166.41,4.46]
[1730817832542,18.48215782,166.47,166.39,4.46]
[1730817832940,18.48215782,166.47,166.37,50.36594602]
[1730817833243,18.48215782,166.44,166.34,4.46]
[1730817833444,2.1038,166.43,166.38,2.1043]
[1730817833646,2.1038,166.43,166.34,4.46]
[1730817834147,2.1038,166.43,166.38,2.1043]
[1730817834750,18.48215782,166.44,166.34,4.46]
[1730817835249,2.1034,166.46,166.4,2.104]
[1730817835456,18.48215782,166.46,166.34,4.46]
[1730817835646,3.9413,166.49,166.34,22.94215782]
[1730817835647,22.42345782,166.49,166.34,22.94215782]
[1730817835948,72.93849,166.55,166.43,18.48215782]
[1730817836139,72.93849,166.55,166.44,8.1237]
[1730817836342,72.93849,166.55,166.51,2.1025]
[1730817836542,72.93849,166.55,166.49,4.3]
[1730817836941,72.93849,166.55,166.51,2.1026]
[1730817837143,72.93849,166.55,166.49,4.3]
[1730817837548,72.93849,166.55,166.54,2.1023]
[1730817838045,72.93849,166.55,166.54,6.4023]
[1730817838645,72.93849,166.55,166.54,4.3]
[1730817838851,72.93849,166.55,166.54,6.4023]
[1730817839152,1.3705,166.67,166.54,4.3]
[1730817839351,1.3705,166.67,166.55,18.48215782]
[1730817839659,1.3705,166.67,166.55,19.77715782]
[1730817840151,1.3705,166.67,166.58,2.1017]
[1730817840353,1.3705,166.67,166.59,4.3]
[1730817840550,1.3705,166.67,166.6,4.3]
[1730817840754,1.3705,166.67,166.61,4.3]
[1730817840957,1.3705,166.67,166.62,4.3]
[1730817841150,1.3705,166.67,166.63,4.3]
[1730817841347,1.3705,166.67,166.6,2.1014]
[1730817841550,1.3705,166.67,166.46,2.6614765]
[1730817841551,18.48215782,166.62,166.47,396.72215782]
[1730817841759,18.48215782,166.62,166.49,1.269]
[1730817842058,18.48215782,166.65,166.5,19.58535641]
[1730817842354,18.48215782,166.65,166.5,18.48215782]
[1730817842553,2.1011,166.64,166.5,18.48215782]
[1730817842858,18.48215782,166.65,166.5,18.48215782]
[1730817843055,18.48215782,166.65,166.59,2.1016]
[1730817843250,18.48215782,166.65,166.57,4.3]
[1730817843751,2.101,166.64,166.58,2.1018]
[1730817844654,20.58315782,166.65,166.58,2.1017]
[1730817844853,18.48215782,166.65,166.58,2.1017]
[1730817845555,18.48215782,166.65,166.6,2.1015]
[1730817845850,18.48215782,166.65,166.57,4.3]
[1730817846155,1.3705,166.67,166.57,4.3]
[1730817846650,1.3705,166.67,166.63,2.101]
[1730817847244,1.3705,166.67,166.62,4.3]
[1730817847447,1.3705,166.67,166.63,2.1011]
[1730817847647,1.3705,166.67,166.62,4.3]
[1730817848551,1.3705,166.67,166.62,6.4012]
[1730817849552,1.3705,166.67,166.62,2.1012]
[1730817849853,1.3705,166.67,166.57,1.268]
[1730817849854,1.3705,166.67,166.61,4.3]
[1730817850451,1.3705,166.67,166.66,2.1008]
[1730817850851,1.3705,166.67,166.62,2.1012]
[1730817851054,18.48215782,166.73,166.61,4.3]
[1730817851255,1.2752,166.72,166.61,4.3]
[1730817851451,3.3752,166.72,166.66,2.1007]
[1730817851657,1.2752,166.72,166.66,4.3]
[1730817852258,2.1002,166.71,166.66,4.3]
[1730817852853,2.1007,166.67,166.62,2.1013]
[1730817853061,18.48215782,166.61,166.45,4.68]
[1730817853257,18.48215782,166.61,166.48,18.48215782]
[1730817853454,2.1014,166.62,166.48,23.48215782]
[1730817853654,18.48215782,166.64,166.54,2.1022]
[1730817853966,18.48215782,166.64,166.51,18.48215782]
[1730817854256,2.1013,166.62,166.55,2.1021]
[1730817854461,18.48215782,166.64,166.48,23.48215782]
[1730817855059,18.48215782,166.61,166.48,23.48215782]
[1730817855462,2.1015,166.6,166.52,2.1025]
[1730817855663,18.48215782,166.64,166.48,23.48215782]
[1730817856367,18.48215782,166.64,166.5,19.82994782]
[1730817857159,18.48215782,166.64,166.51,5.0]
[1730817857467,18.48215782,166.6,166.51,5.0]
[1730817857765,18.48215782,166.64,166.52,2.1025]
[1730817858067,1.3283,166.66,166.56,18.48215782]
[1730817858267,1.3174,166.65,166.57,5.0]
[1730817858466,1.3174,166.65,166.58,18.48215782]
[1730817858666,1.3174,166.65,166.61,2.1013]
[1730817859067,1.3174,166.65,166.58,18.48215782]
[1730817859270,1.3174,166.65,166.62,2.1013]
[1730817859662,18.48215782,166.73,166.64,2.1009]
[1730817859663,2.0999,166.73,166.64,2.1009]
[1730817859964,2.6646,166.72,166.63,5.0]
[1730817860165,2.1003,166.7,166.63,5.0]
[1730817860468,21.14675782,166.72,166.63,5.0]
[1730817860768,6.276,166.79,166.67,18.48215782]
[1730817860769,1.276,166.79,166.67,18.48215782]
[1730817861072,1.3201,166.78,166.67,18.48215782]
[1730817861366,1.3201,166.78,166.64,19.79825782]
[1730817861767,3.4194,166.78,166.68,2.1005]
[1730817861971,21.90155782,166.78,166.68,2.1005]
[1730817862272,1.3201,166.78,166.64,19.79825782]
[1730817863779,1.3201,166.78,166.58,4.26560487]
[1730817863973,1.3201,166.78,166.59,1.10249629]
[1730817863974,18.48215782,166.7,166.59,1.10249629]
[1730817864166,2.6838,166.69,166.58,1.2988]
[1730817864371,2.1006,166.68,166.58,1.2988]
[1730817864675,2.6838,166.69,166.58,1.2988]
[1730817865471,4.0207,166.69,166.58,1.2988]
[1730817866174,4.0207,166.69,166.61,2.1014]
[1730817866369,4.0207,166.69,166.57,5.74]
[1730817866679,4.0207,166.69,166.59,2.1016]
[1730817866877,4.0207,166.69,166.57,5.74]
[1730817867571,18.48215782,166.9,166.59,18.48215782]
[1730817867774,18.48215782,166.9,166.57,5.74]
[1730817867775,1.2703,166.73,166.62,18.48215782]
[1730817867977,1.2703,166.73,166.65,2.1009]
[1730817868170,1.2703,166.73,166.64,5.74]
[1730817869273,1.2703,166.73,166.66,2.1008]
[1730817870283,1.2703,166.73,166.67,2.1006]
[1730817870582,3.3702,166.73,166.64,5.74]
[1730817870982,2.1,166.72,166.65,2.1009]
[1730817873388,1.2703,166.73,166.65,18.48215782]
[1730817873678,1.2703,166.73,166.62,5.74]
[1730817873679,1.2703,166.73,166.62,24.22215782]
[1730817873879,1.2703,166.73,166.66,2.1008]
[1730817873880,2.1,166.72,166.66,2.1008]
[1730817874687,1.2703,166.73,166.62,5.74]
[1730817874985,3.3702,166.73,166.67,2.1006]
[1730817875284,1.2703,166.73,166.62,5.74]
[1730817875583,1.2703,166.73,166.63,18.48215782]
[1730817876680,1.2703,166.73,166.68,2.1005]
[1730817876882,1.2703,166.73,166.63,18.48215782]
[1730817877383,1.2703,166.73,166.62,5.74]
[1730817877384,1.2703,166.73,166.66,2.1008]
[1730817877686,1.2703,166.73,166.64,2.101]
[1730817877892,2.1002,166.71,166.62,5.74]
[1730817878288,2.1002,166.71,166.66,2.1008]
[1730817878492,2.1002,166.71,166.62,5.74]
[1730817878990,2.1002,166.71,166.64,2.1009]
[1730817879182,2.1002,166.71,166.62,5.74]
[1730817879577,2.1002,166.71,166.65,2.1008]
[1730817880288,2.1002,166.71,166.66,2.1007]
[1730817880492,1.2703,166.73,166.62,5.74]
[1730817880688,19.75245782,166.73,166.63,2.1011]
[1730817880888,19.75245782,166.73,166.6,2.5974]
[1730817881094,18.48215782,166.7,166.6,2.5974]
[1730817881386,18.48215782,166.7,166.58,5.74]
[1730817881882,2.1005,166.68,166.58,5.74]
[1730817882088,18.48215782,166.7,166.58,5.74]
[1730817883593,18.48215782,166.7,166.59,1.26842]
[1730817883992,18.48215782,166.68,166.59,1.26842]
[1730817884194,2.6503,166.67,166.59,1.26842]
[1730817884392,2.1011,166.64,166.59,3.37002]
[1730817884596,2.6503,166.67,166.59,1.26842]
[1730817885686,1.354,166.67,166.59,1.26842]
[1730817885995,19.83615782,166.67,166.59,1.26842]
[1730817886496,18.48215782,166.64,166.59,1.26842]
[1730817886685,1.3941,166.63,166.59,1.26842]
[1730817887595,2.1014,166.61,166.59,1.26842]
[1730817887794,2.1014,166.61,166.57,2.1019]
[1730817888388,2.6614,166.63,166.52,1.2977]
[1730817888590,2.1017,166.59,166.55,2.1021]
[1730817888791,2.6614,166.63,166.52,1.2977]
[1730817888985,2.1014,166.62,166.52,1.2977]
[1730817889989,2.1014,166.61,166.55,2.1021]
[1730817890194,2.6614,166.63,166.52,1.2977]
[1730817890695,2.1013,166.62,166.57,2.1018]
[1730817891392,2.1013,166.62,166.58,2.1018]
[1730817891593,2.1014,166.61,166.52,1.2977]
[1730817892997,4.7627,166.63,166.58,2.1017]
[1730817893195,2.94245882,166.88,166.58,18.48215782]
[1730817893396,2.94245882,166.88,166.55,5.12]
[1730817893397,1.3933,166.74,166.61,18.48215782]
[1730817893595,2.1,166.72,166.67,2.1006]
[1730817893794,1.3933,166.74,166.62,5.12]
[1730817894293,2.1003,166.7,166.65,2.1008]
[1730817894890,2.1002,166.71,166.63,2.1011]
[1730817895093,19.87545782,166.74,166.62,5.12]
[1730817896005,2.1002,166.71,166.66,2.1007]
[1730817896499,2.1003,166.7,166.66,2.1007]
[1730817896900,19.87545782,166.74,166.67,2.1006]
[1730817897098,2.1003,166.7,166.67,2.1006]
[1730817897498,2.1003,166.7,166.66,2.1007]
[1730817898212,2.1003,166.7,166.62,5.12]
[1730817898213,19.87545782,166.74,166.62,5.12]
[1730817898797,19.87545782,166.74,166.65,2.1008]
[1730817898798,21.97535782,166.74,166.65,2.1008]
[1730817898998,19.87545782,166.74,166.62,5.12]
[1730817899900,18.48215782,166.66,166.48,2.65640553]
[1730817900105,18.48215782,166.66,166.49,3.9579]
[1730817900106,1.3525,166.65,166.49,3.9579]
[1730817900303,18.48215782,166.63,166.49,3.9579]
[1730817900502,18.48215782,166.6,166.49,3.9579]
[1730817901302,18.48215782,166.63,166.49,3.9579]
[1730817902107,2.1017,166.59,166.52,2.1025]
[1730817902305,18.48215782,166.63,166.49,3.9579]
[1730817902708,18.48215782,166.6,166.51,2.1026]
[1730817902905,18.48215782,166.6,166.49,3.9579]
[1730817903304,20.58375782,166.6,166.49,3.9579]
[1730817903903,2.1013,166.62,166.56,2.102]
[1730817904608,2.1015,166.6,166.54,2.1022]
[1730817904806,18.48215782,166.63,166.49,3.9579]
[1730817905210,20.58335782,166.63,166.51,18.48215782]
[1730817905714,1.389,166.64,166.51,18.48215782]
[1730817905904,1.389,166.64,166.49,3.9579]
[1730817905905,1.389,166.64,166.54,18.48215782]
[1730817906104,1.389,166.64,166.55,5.12]
[1730817906308,1.389,166.64,166.59,2.1015]
[1730817907012,1.389,166.64,166.6,2.1014]
[1730817907206,1.389,166.64,166.55,5.12]
[1730817908306,3.4901,166.64,166.58,2.1017]
[1730817908904,3.4901,166.64,166.57,2.1018]
[1730817909108,1.389,166.64,166.55,5.12]
[1730817909409,18.48215782,166.63,166.55,5.12]
[1730817909610,1.389,166.64,166.57,2.1019]
[1730817909808,2.1013,166.62,166.55,5.12]
[1730817910209,1.389,166.64,166.55,5.12]
[1730817912811,1.389,166.64,166.58,2.1017]
[1730817913218,2.1013,166.62,166.58,2.1017]
[1730817913721,1.389,166.64,166.57,2.1019]
[1730817914017,1.389,166.64,166.55,5.12]
[1730817914213,1.389,166.64,166.57,2.1019]
[1730817914416,2.1015,166.61,166.57,2.1019]
[1730817915215,1.389,166.64,166.51,18.48215782]
[1730817915413,2.1016,166.6,166.56,2.102]
[1730817915813,2.1015,166.61,166.57,2.1019]
[1730817916116,1.389,166.64,166.51,5.12]
[1730817916318,18.48215782,166.63,166.54,2.1022]
[1730817916616,18.48215782,166.6,166.43,19.78085782]
[1730817916921,18.48215782,166.6,166.46,18.48215782]
[1730817917914,1.389,166.64,166.43,1.2987]
[1730817917915,18.48215782,166.55,166.43,1.2987]
[1730817918120,4.0382,166.54,166.41,2.6301]
[1730817918307,5.12,166.53,166.41,21.11225782]
[1730817918510,4.0382,166.54,166.44,18.48215782]
[1730817918720,1.3978,166.54,166.44,18.48215782]
[1730817918915,3.5002,166.54,166.48,2.103]
[1730817919110,1.3978,166.54,166.45,1.2865]
[1730817919519,1.3978,166.54,166.5,2.1027]
[1730817919709,26.28345782,166.58,166.45,1.2865]
[1730817919710,23.60215782,166.58,166.45,1.2865]
[1730817919915,1.3978,166.57,166.45,1.2865]
[1730817920517,1.3978,166.57,166.49,2.1028]
[1730817920518,2.1022,166.55,166.49,2.1028]
[1730817920714,1.3978,166.57,166.45,1.2865]
[1730817921118,1.3978,166.57,166.51,2.1027]
[1730817921320,1.3978,166.57,166.47,18.48215782]
[1730817921615,1.3978,166.57,166.52,2.1024]
[1730817922019,1.3672,166.58,166.47,18.48215782]
[1730817922214,5.1,166.62,166.47,18.48215782]
[1730817922419,2.1014,166.61,166.47,18.48215782]
[1730817922816,6.3925,166.62,166.47,18.48215782]
[1730817923024,2.1016,166.6,166.54,2.1022]
[1730817923524,2.1016,166.6,166.47,18.48215782]
[1730817923525,2.1018,166.58,166.52,2.1024]
[1730817923824,18.48215782,166.6,166.47,18.48215782]
[1730817924026,2.102,166.57,166.51,2.1025]
[1730817924325,18.48215782,166.6,166.46,5.1]
[1730817924516,2.1019,166.57,166.51,2.1025]
[1730817924714,2.1019,166.57,166.46,5.1]
[1730817924911,18.48215782,166.57,166.45,1.2865]
[1730817925115,7.7047,166.62,166.45,6.3865]
[1730817925116,1.3983,166.56,166.45,6.3865]
[1730817925312,7.7047,166.62,166.47,18.48215782]
[1730817925313,21.08685782,166.62,166.47,18.48215782]
[1730817925515,1.3983,166.61,166.47,18.48215782]
[1730817925716,2.1016,166.6,166.54,2.1022]
[1730817925914,2.1016,166.6,166.47,18.48215782]
[1730817925915,1.3983,166.61,166.47,18.48215782]
[1730817926417,2.1018,166.59,166.47,18.48215782]
[1730817926618,1.3983,166.61,166.47,18.48215782]
[1730817926820,18.48215782,166.59,166.47,18.48215782]
[1730817927016,2.1019,166.58,166.47,18.48215782]
[1730817927417,18.48215782,166.59,166.47,18.48215782]
[1730817927621,2.1019,166.58,166.52,2.1025]
[1730817927827,2.1019,166.58,166.47,18.48215782]
[1730817928023,20.58395782,166.59,166.53,2.1023]
[1730817928327,1.3983,166.61,166.47,18.48215782]
[1730817928524,2.1015,166.6,166.47,18.48215782]
[1730817928926,1.3983,166.61,166.47,18.48215782]
[1730817930328,2.1017,166.59,166.53,2.1023]
[1730817930526,1.3983,166.61,166.47,18.48215782]
[1730817930919,2.1016,166.6,166.54,2.1022]
[1730817931225,18.48215782,166.59,166.47,18.48215782]
[1730817931627,2.1019,166.57,166.47,18.48215782]
[1730817931826,18.48215782,166.59,166.47,18.48215782]
[1730817932021,2.1018,166.58,166.52,2.1024]
[1730817932225,1.3983,166.61,166.47,23.58215782]
[1730817932733,2.1016,166.6,166.47,23.58215782]
[1730817932924,1.3983,166.61,166.49,18.48215782]
[1730817933124,1.2925,166.62,166.58,2.1017]
[1730817933730,1.2925,166.62,166.53,5.1]
[1730817933932,3.3938,166.62,166.57,2.1019]
[1730817934126,3.3938,166.62,166.53,5.1]
[1730817934340,1.2925,166.62,166.53,5.1]
[1730817935225,18.48215782,166.61,166.54,2.1022]
[1730817935438,18.48215782,166.61,166.5,2.6443]
[1730817935630,1.337,166.6,166.5,2.6443]
[1730817935828,2.1017,166.59,166.53,2.1023]
[1730817936033,2.1017,166.59,166.5,2.6443]
[1730817936232,2.1017,166.59,166.53,2.1023]
[1730817936728,2.1017,166.59,166.5,2.6443]
[1730817936932,1.337,166.6,166.5,2.6443]
[1730817937630,2.1019,166.58,166.53,2.1023]
[1730817937824,18.48215782,166.59,166.5,1.2959]
[1730817938027,18.48215782,166.59,166.49,5.1]
[1730817938236,19.79205782,166.59,166.45,7.7148]
[1730817938636,18.48215782,166.53,166.39,18.48215782]
[1730817938933,18.48215782,166.53,166.4,6.4283]
[1730817939130,18.48215782,166.56,166.42,18.48215782]
[1730817939538,2.1026,166.52,166.47,2.1031]
[1730817939728,18.48215782,166.56,166.42,18.48215782]
[1730817939929,18.48215782,166.56,166.4,24.91045782]
[1730817940543,18.48215782,166.56,166.4,19.81045782]
[1730817940731,18.48215782,166.56,166.41,5.1]
[1730817941036,18.48215782,166.57,166.41,5.1]
[1730817941636,18.48215782,166.54,166.41,5.1]
[1730817941836,1.3364,166.53,166.41,5.1]
[1730817942032,2.1029,166.5,166.45,2.1033]
[1730817942232,1.3701,166.52,166.41,5.1]
[1730817942538,1.3701,166.52,166.4,19.81045782]
[1730817942739,18.48215782,166.47,166.28,10.62562214]
[1730817942935,18.48215782,166.47,166.33,1.3592]
[1730817943134,2.1034,166.45,166.39,2.1041]
[1730817943329,2.1034,166.45,166.33,1.3592]
[1730817943739,2.1035,166.44,166.39,2.1041]
[1730817943940,18.48215782,166.47,166.33,1.3592]
[1730817944436,2.1034,166.45,166.33,1.3592]
[1730817944840,2.1037,166.43,166.37,2.1044]
[1730817945043,2.1037,166.43,166.33,1.3592]
[1730817945235,18.48215782,166.44,166.33,1.3592]
[1730817945544,1.2881,166.42,166.33,1.3592]
[1730817945744,18.48215782,166.41,166.29,2.6391]
[1730817945935,18.48215782,166.38,166.29,2.6391]
[1730817946137,18.48215782,166.38,166.29,1.3436]
[1730817946343,18.48215782,166.38,166.26,1.3014]
[1730817946639,18.48215782,166.35,166.26,1.3014]
[1730817946837,23.58215782,166.4,166.17,23.58215782]
[1730817946838,18.48215782,166.33,166.17,23.58215782]
[1730817947037,2.571,166.32,166.18,1.2729]
[1730817947437,18.48215782,166.3,166.18,1.2729]
[1730817947944,18.48215782,166.27,166.15,1.3915]
[1730817948134,18.48215782,166.25,166.13,1.2729]
[1730817948335,18.48215782,166.22,166.13,1.2729]
[1730817948841,18.48215782,166.22,166.11,1.3014]
[1730817949343,18.48215782,166.22,166.14,2.1073]
[1730817949545,18.48215782,166.22,166.11,1.3014]
[1730817950643,18.48215782,166.27,166.12,18.48215782]
[1730817950850,18.48215782,166.27,166.13,1.3296]
[1730817951344,20.58785782,166.27,166.2,2.1065]
[1730817951548,18.48215782,166.27,166.13,1.3296]
[1730817951855,2.1065,166.21,166.14,2.1073]
[1730817952147,18.48215782,166.22,166.1,1.2933]
[1730817952549,5.0,166.23,166.1,19.77545782]
[1730817952740,23.48215782,166.24,166.1,19.77545782]
[1730817953141,18.48215782,166.28,166.13,18.48215782]
[1730817953340,1.0,166.26,166.16,18.48215782]
[1730817953538,18.48215782,166.3,166.24,2.106]
[1730817953742,3.9617,166.31,166.19,23.48215782]
[1730817953945,3.9617,166.31,166.2,1.3085]
[1730817954249,6.0669,166.31,166.23,2.1062]
[1730817954442,3.9617,166.31,166.2,1.3085]
[1730817954843,161.65969,166.31,166.24,2.106]
[1730817955045,158.25759,166.31,166.2,1.3085]
[1730817955249,155.59269,166.31,166.21,18.48215782]
[1730817955450,151.38519,166.31,166.27,18.48215782]
[1730817955645,4.2043,166.56,166.29,18.48215782]
[1730817955646,6.3497,166.47,166.29,18.48215782]
[1730817955837,18.48215782,166.46,166.3,5.0]
[1730817956039,6.3497,166.47,166.3,5.0]
[1730817956040,1.3497,166.47,166.3,5.0]
[1730817956247,18.48215782,166.45,166.3,5.0]
[1730817956444,18.48215782,166.45,166.32,18.48215782]
[1730817956840,1.3497,166.47,166.33,1.10449302]
[1730817957044,1.3497,166.47,166.35,18.48215782]
[1730817957246,1.3215,166.48,166.36,5.0]
[1730817957836,3.4245,166.48,166.39,2.1041]
[1730817958041,1.3215,166.48,166.36,5.0]
[1730817958548,19.80365782,166.48,166.36,5.0]
[1730817959553,19.80365782,166.48,166.39,2.1041]
[1730817959746,19.80365782,166.48,166.36,5.0]
[1730817960049,19.80365782,166.48,166.41,2.1038]
[1730817960250,19.80365782,166.48,166.36,5.0]
[1730817960444,18.48215782,166.51,166.38,18.48215782]
[1730817960643,18.48215782,166.54,166.48,2.103]
[1730817961048,2.1024,166.53,166.45,7.1033]
[1730817961250,18.48215782,166.51,166.38,18.48215782]
[1730817961547,18.48215782,166.51,166.39,5.0]
[1730817961744,18.48215782,166.48,166.39,5.0]
[1730817962951,2.1037,166.44,166.37,2.1044]
[1730817963548,18.48215782,166.43,166.3,18.48215782]
[1730817963749,18.48215782,166.43,166.31,5.0]
[1730817963949,18.48215782,166.4,166.27,18.48215782]
[1730817964139,18.48215782,166.4,166.3,5.0]
[1730817964346,20.58655782,166.37,166.3,5.0]
[1730817964651,18.48215782,166.4,166.3,5.0]
[1730817965352,18.48215782,166.4,166.15,18.48215782]
[1730817965551,18.48215782,166.4,166.29,48.3]
[1730817966057,18.48215782,166.4,166.34,2.1048]
[1730817966251,18.48215782,166.4,166.29,48.3]
[1730817966646,20.58635782,166.4,166.34,2.1048]
[1730817966844,18.48215782,166.4,166.29,48.3]
[1730817967054,18.48215782,166.43,166.29,66.78215782]
[1730817967552,18.48215782,166.43,166.38,2.1042]
[1730817967956,18.48215782,166.43,166.35,5.0]
[1730817968151,18.48215782,166.43,166.38,2.1043]
[1730817968352,2.682,166.45,166.35,5.0]
[1730817969355,2.682,166.45,166.41,2.1038]
[1730817969553,2.682,166.45,166.35,5.0]
[1730817969755,4.7855,166.45,166.39,2.1041]
[1730817970058,18.48215782,166.43,166.35,5.0]
[1730817970361,18.48215782,166.43,166.37,2.1044]
[1730817970556,18.48215782,166.43,166.35,5.0]
[1730817971164,2.682,166.45,166.35,5.0]
[1730817971659,4.7855,166.45,166.35,5.0]
[1730817971859,2.682,166.45,166.35,5.0]
[1730817973055,4.7855,166.45,166.38,2.1043]
[1730817973360,2.682,166.45,166.35,5.0]
[1730817973752,4.7854,166.45,166.38,2.1043]
[1730817974060,4.7854,166.45,166.35,5.0]
[1730817974247,4.7854,166.45,166.39,2.1041]
[1730817974447,2.682,166.45,166.35,5.0]
[1730817974859,2.682,166.45,166.4,2.104]
[1730817975053,2.682,166.45,166.35,5.0]
[1730817975253,18.48215782,166.49,166.35,23.48215782]
[1730817975450,21.03395782,166.52,166.35,23.48215782]
[1730817975847,18.48215782,166.49,166.36,5.0]
[1730817976053,18.48215782,166.49,166.42,2.1037]
[1730817976352,18.48215782,166.49,166.36,5.0]
[1730817977660,2.1032,166.47,166.36,5.0]
[1730817977860,18.48215782,166.49,166.36,5.0]
[1730817978059,2.1032,166.47,166.41,2.1038]
[1730817978449,21.03395782,166.52,166.36,5.0]
[1730817978664,21.03395782,166.52,166.46,2.1033]
[1730817978855,18.48215782,166.49,166.29,43.3]
[1730817979055,18.48215782,166.46,166.3,24.58650292]
[1730817979360,18.48215782,166.46,166.3,23.48215782]
[1730817979862,18.48215782,166.49,166.32,18.48215782]
[1730817981556,18.48215782,166.44,166.3,23.48215782]
[1730817981761,2.5993,166.43,166.3,23.48215782]
[1730817981958,2.1045,166.37,166.26,2.1057]
[1730817982154,18.48215782,166.38,166.23,5.04]
[1730817982360,18.48215782,166.38,166.24,6.1448945]
[1730817982554,18.48215782,166.38,166.24,5.04]
[1730817983165,18.48215782,166.38,166.25,18.48215782]
[1730817983369,1.3039,166.42,166.28,18.48215782]
[1730817983552,1.3039,166.42,166.24,5.04]
[1730817983553,1.3039,166.42,166.31,18.48215782]
[1730817983756,3.4077,166.42,166.36,2.1045]
[1730817984064,1.3039,166.42,166.31,23.52215782]
[1730817985057,2.5993,166.43,166.33,18.48215782]
[1730817985256,1.3435,166.49,166.39,18.48215782]
[1730817985558,43.28,166.64,166.39,18.48215782]
[1730817985559,18.48215782,166.54,166.4,5.04]
[1730817985755,1.3435,166.53,166.4,5.04]
[1730817987059,2.1028,166.5,166.43,2.1036]
[1730817987263,18.48215782,166.51,166.4,5.04]
[1730817987865,20.58495782,166.51,166.44,2.1035]
[1730817988065,18.48215782,166.51,166.44,2.1035]
[1730817989373,2.1028,166.5,166.44,2.1035]
[1730817989560,2.1028,166.5,166.45,2.1034]
[1730817989759,18.48215782,166.51,166.29,43.28]
[1730817990058,18.48215782,166.48,166.39,2.1042]
[1730817990263,1.3435,166.53,166.33,5.04]
[1730817990264,18.48215782,166.45,166.33,5.04]
[1730817990470,18.48215782,166.42,166.29,43.28]
[1730817990668,18.48215782,166.4,166.31,5.04]
[1730817990968,18.48215782,166.4,166.27,5.04]
[1730817991269,18.48215782,166.4,166.3,2.1053]
[1730817991663,2.1046,166.36,166.27,5.04]
[1730817992459,18.48215782,166.4,166.28,5.04]
[1730817992460,2.1047,166.35,166.28,5.04]
[1730817993070,18.48215782,166.37,166.2,18.48215782]
[1730817993366,18.48215782,166.31,166.21,5.04]
[1730817993562,21.13445782,166.34,166.21,5.04]
[1730817993769,2.6523,166.34,166.21,5.04]
[1730817994283,2.6523,166.34,166.31,2.1051]
[1730817994473,2.6523,166.34,166.23,18.48215782]
[1730817994474,18.48215782,166.43,166.29,18.48215782]
[1730817994676,2.6845,166.43,166.29,18.48215782]
[1730817994981,2.6845,166.43,166.31,18.48215782]
[1730817995168,2.6845,166.43,166.34,18.48215782]
[1730817995369,2.6845,166.43,166.35,5.04]
[1730817995572,18.48215782,166.51,166.37,18.48215782]
[1730817995774,2.6241,166.5,166.37,18.48215782]
[1730817998176,2.1029,166.49,166.42,2.1037]
[1730817998573,2.6241,166.5,166.43,2.1036]
[1730817998781,2.6241,166.5,166.41,5.04]
[1730817998782,4.7269,166.5,166.41,5.04]
[1730817999084,2.6241,166.5,166.41,5.04]
[1730817999577,4.727,166.5,166.44,2.1034]
[1730817999774,2.6241,166.5,166.41,5.04]
[1730817999975,2.6241,166.5,166.43,2.1036]
[1730818000177,2.6241,166.5,166.41,5.04]
[1730818001276,2.6241,166.5,166.45,2.1033]
[1730818001878,2.6241,166.5,166.39,18.48215782]
[1730818002079,2.6241,166.5,166.36,18.48215782]
[1730818002280,2.6241,166.5,166.37,5.04]
[1730818002576,2.1035,166.45,166.39,2.1042]
[1730818002776,18.48215782,166.48,166.37,5.04]
[1730818002978,1.3405,166.44,166.37,5.04]
[1730818003181,1.3405,166.44,166.37,2.1043]